Department Family,Entity,Date,Expenses Type,Expense Area,Supplier,Transaction Number,  Total  ,
Department of Health,The Christie NHS Foundation Trust,25/02/2021,Medical Equipment,Clin Support & Spec Surgery,PARITY COMPUTERS LTD,0000660456," 46,523.40 ",
Department of Health,The Christie NHS Foundation Trust,11/02/2021,Drugs,Drugs,ALCURA UK LIMITED,0000661203," 44,193.27 ",
Department of Health,The Christie NHS Foundation Trust,04/02/2021,Drugs,Drugs,ALCURA UK LIMITED,0000660660," 79,332.21 ",
Department of Health,The Christie NHS Foundation Trust,04/02/2021,Drugs,Drugs,BAXTER HEALTHCARE LTD,0000658818," 130,037.27 ",
Department of Health,The Christie NHS Foundation Trust,04/02/2021,Drugs,Drugs,BAXTER HEALTHCARE LTD,0000658949," 280,363.10 ",
Department of Health,The Christie NHS Foundation Trust,04/02/2021,Drugs,Drugs,BAXTER HEALTHCARE LTD,0000659446," 136,325.83 ",
Department of Health,The Christie NHS Foundation Trust,04/02/2021,Drugs,Drugs,BAXTER HEALTHCARE LTD,0000658816," 119,391.44 ",
Department of Health,The Christie NHS Foundation Trust,04/02/2021,Drugs,Drugs,BAXTER HEALTHCARE LTD,0000658817," 60,907.66 ",
Department of Health,The Christie NHS Foundation Trust,25/02/2021,Drugs,Drugs,BAXTER HEALTHCARE LTD,0000660538," 80,490.08 ",
Department of Health,The Christie NHS Foundation Trust,25/02/2021,Drugs,Drugs,BAXTER HEALTHCARE LTD,0000660535," 146,635.10 ",
Department of Health,The Christie NHS Foundation Trust,25/02/2021,Drugs,Drugs,BAXTER HEALTHCARE LTD,0000660539," 129,972.77 ",
Department of Health,The Christie NHS Foundation Trust,25/02/2021,Drugs,Drugs,BAXTER HEALTHCARE LTD,0000661013," 123,751.26 ",
Department of Health,The Christie NHS Foundation Trust,18/02/2021,Drugs,Drugs,BAXTER HEALTHCARE LTD,0000660016," 96,861.59 ",
Department of Health,The Christie NHS Foundation Trust,18/02/2021,Drugs,Drugs,BAXTER HEALTHCARE LTD,0000660156," 77,994.35 ",
Department of Health,The Christie NHS Foundation Trust,25/02/2021,Drugs,Drugs,BAXTER HEALTHCARE LTD,0000660540," 98,953.09 ",
Department of Health,The Christie NHS Foundation Trust,11/02/2021,Drugs,Drugs,BAXTER HEALTHCARE LTD,0000659459," 118,188.70 ",
Department of Health,The Christie NHS Foundation Trust,11/02/2021,Drugs,Drugs,BAXTER HEALTHCARE LTD,0000659619," 91,105.70 ",
Department of Health,The Christie NHS Foundation Trust,11/02/2021,Drugs,Drugs,BAXTER HEALTHCARE LTD,0000660007," 115,762.88 ",
Department of Health,The Christie NHS Foundation Trust,18/02/2021,Drugs,Drugs,BAXTER HEALTHCARE LTD,0000660014," 79,671.06 ",
Department of Health,The Christie NHS Foundation Trust,01/02/2021,Drugs,Drugs,BAXTER HEALTHCARE LTD,0000660015," 45,240.00 ",
Department of Health,The Christie NHS Foundation Trust,11/02/2021,Drugs,Drugs,BAXTER HEALTHCARE LTD,0000659458," 186,036.62 ",
Department of Health,The Christie NHS Foundation Trust,18/02/2021,Drugs,Drugs,BAXTER HEALTHCARE LTD,0000660017," 162,872.70 ",
Department of Health,The Christie NHS Foundation Trust,04/02/2021,Drugs,Drugs,EAST CHESHIRE NHS TRUST,0000658907," 82,354.96 ",
Department of Health,The Christie NHS Foundation Trust,11/02/2021,Drugs,Drugs,HEALTHCARE AT HOME LTD,0000661181," 39,889.00 ",
Department of Health,The Christie NHS Foundation Trust,11/02/2021,Drugs,Drugs,HEALTHCARE AT HOME LTD,0000661183," 29,176.00 ",
Department of Health,The Christie NHS Foundation Trust,11/02/2021,Drugs,Drugs,HEALTHCARE AT HOME LTD,0000660238," 34,283.00 ",
Department of Health,The Christie NHS Foundation Trust,04/02/2021,Drugs,Drugs,HEALTHCARE AT HOME LTD,0000660633," 25,299.00 ",
Department of Health,The Christie NHS Foundation Trust,04/02/2021,Drugs,Drugs,HEALTHCARE AT HOME LTD,0000660632," 39,282.00 ",
Department of Health,The Christie NHS Foundation Trust,11/02/2021,Drugs,Drugs,MID CHESHIRE HOSPITALS NHS FT,0000658603," 118,184.57 ",
Department of Health,The Christie NHS Foundation Trust,11/02/2021,Drugs,Drugs,NOVARTIS PHARMACEUTICALS UK LTD,0000659356," 257,184.00 ",
Department of Health,The Christie NHS Foundation Trust,18/02/2021,Drugs,Drugs,NOVARTIS PHARMACEUTICALS UK LTD,0000660296," 257,184.00 ",
Department of Health,The Christie NHS Foundation Trust,04/02/2021,Drugs,Drugs,THE CHRISTIE CLINIC (HCA),0000658755," 34,931.00 ",
Department of Health,The Christie NHS Foundation Trust,07/02/2021,Blood Products,Network Services,DD NHS BLOOD AND TRANSPLANT,0000659877," 188,268.30 ",
Department of Health,The Christie NHS Foundation Trust,11/02/2021,Oncology SLA Contract Charge,Network Services,EAST CHESHIRE NHS TRUST,0000659323," 138,155.00 ",
Department of Health,The Christie NHS Foundation Trust,11/02/2021,Electricity Invoice - Jan 2021,Network Services,EDF ENERGY,0000660949," 38,693.00 ",
Department of Health,The Christie NHS Foundation Trust,11/02/2021,Electricity Invoice - Jan 2021,Network Services,EDF ENERGY,0000660950," 55,708.53 ",
Department of Health,The Christie NHS Foundation Trust,04/02/2021,Treatment Procedure,Network Services,GILEAD SCIENCES LTD,0000659399," 224,360.80 ",
Department of Health,The Christie NHS Foundation Trust,11/02/2021,Treatment Procedure,Network Services,GILEAD SCIENCES LTD,0000659825," 224,360.80 ",
Department of Health,The Christie NHS Foundation Trust,25/02/2021,Q3 Paed Anaesthetic Consultant Support ,Network Services,MANCHESTER UNIVERSITY NHS FT,0000657997," 44,205.32 ",
Department of Health,The Christie NHS Foundation Trust,25/02/2021,Q4 Paed Anaesthetic Consultant Support ,Network Services,MANCHESTER UNIVERSITY NHS FT,0000659984," 36,838.00 ",
Department of Health,The Christie NHS Foundation Trust,25/02/2021,Q1-2 Paed Anaesthetic Consultant Support ,Network Services,MANCHESTER UNIVERSITY NHS FT,0000655275," 88,410.64 ",
Department of Health,The Christie NHS Foundation Trust,11/02/2021,MacMilan Centre December 2020 Provision Charge,Network Services,MID CHESHIRE HOSPITALS NHS FT,0000656631," 52,893.00 ",
Department of Health,The Christie NHS Foundation Trust,11/02/2021,MacMilan Centre October 2020 Provision Charge,Network Services,MID CHESHIRE HOSPITALS NHS FT,0000658080," 52,893.00 ",
Department of Health,The Christie NHS Foundation Trust,11/02/2021,MacMilan Centre October 2020 Provision Charge,Network Services,MID CHESHIRE HOSPITALS NHS FT,0000658081," 52,893.00 ",
Department of Health,The Christie NHS Foundation Trust,25/02/2021,Charge for Provision of Services at Macmilan Centre - Feb 2021,Network Services,MID CHESHIRE HOSPITALS NHS FT,0000660719," 52,893.00 ",
Department of Health,The Christie NHS Foundation Trust,18/02/2021,Charge for Provision of Services at Macmilan Centre - Jan 2021,Network Services,MID CHESHIRE HOSPITALS NHS FT,0000658261," 52,893.00 ",
Department of Health,The Christie NHS Foundation Trust,11/02/2021,Blood Products,Network Services,NHS BLOOD AND TRANSPLANT,0000659886," 27,528.51 ",
Department of Health,The Christie NHS Foundation Trust,04/02/2021,Maintenance & Service Support of Dosimetry Equipment,Network Services,ONCOLOGY SYSTEMS LIMITED,0000659108," 35,174.40 ",
Department of Health,The Christie NHS Foundation Trust,11/02/2021,Hotel,Network Services,STAYCITY MANCHESTER LTD,0000659508," 79,273.17 ",
Department of Health,The Christie NHS Foundation Trust,25/02/2021,Chemotherapy SLA Invoice Month 7-9,Network Services,STOCKPORT NHS FOUNDATION TRUST,0000660504," 92,151.00 ",
Department of Health,The Christie NHS Foundation Trust,18/02/2021,Patient Treatment,Network Services,THE ANTHONY NOLAN BONE MARROW,0000659967," 54,280.00 ",
Department of Health,The Christie NHS Foundation Trust,25/02/2021,Patient Treatment,Network Services,THE ANTHONY NOLAN BONE MARROW,0000660545," 29,094.00 ",
Department of Health,The Christie NHS Foundation Trust,18/02/2021,Service Contract,Network Services,VARIAN MEDICAL SYSTEMS UK LTD,0000660281," 259,051.16 ",
Department of Health,The Christie NHS Foundation Trust,11/02/2021,Clinical Activity Charge,Network Services,WRIGHTINGTON WIGAN AND LEIGH NHS FT,0000660395," 277,691.07 ",
Department of Health,The Christie NHS Foundation Trust,04/02/2021,Facilities Management Services - February 2021,Christie Pathology Partner,CPP FACILITIES LLP,0000659779," 216,551.87 ",
Department of Health,The Christie NHS Foundation Trust,11/02/2021,Facilities Management Services - December 2020,Christie Pathology Partner,CPP FACILITIES LLP,0000660654," 277,424.62 ",
Department of Health,The Christie NHS Foundation Trust,11/02/2021,Pathology Testing Services - December 2020,Christie Pathology Partner,THE CHRISTIE PATHOLOGY PARTNERSHIP LLP,0000660649," 486,467.48 ",
Department of Health,The Christie NHS Foundation Trust,08/02/2021,Rates,Estates & Facilities,DD M/CR CITY COUNCIL (RATES),0000661060," 75,579.00 ",
Department of Health,The Christie NHS Foundation Trust,11/02/2021,Parking Technology Equipment,Estates & Facilities,FAAC (UK) LTD,0000640586," 43,473.59 ",
Department of Health,The Christie NHS Foundation Trust,25/02/2021,Linen Services/Rental Invoice - November 2020,Estates & Facilities,THE PENNINE ACUTE HOSPITAL NHS TRUST,0000658039," 26,452.40 ",
Department of Health,The Christie NHS Foundation Trust,25/02/2021,Linen Services/Rental Invoice - December 2020,Estates & Facilities,THE PENNINE ACUTE HOSPITAL NHS TRUST,0000658040," 26,452.40 ",
Department of Health,The Christie NHS Foundation Trust,25/02/2021,Recovery of 2020/21 Overpayments ,Other Income Levies and Gra,NHS ENGLAND,0000658044," 260,400.00 ",
Department of Health,The Christie NHS Foundation Trust,18/02/2021,Medical Equipment,Christie Medical Physics,ADVANCED ACCELERATOR APPLICATIONS LTD,0000660482," 106,800.00 ",
Department of Health,The Christie NHS Foundation Trust,18/02/2021,PET-CT Outsourced Appointments,Christie Medical Physics,ALLIANCE MEDICAL LTD,0000657423," 261,600.00 ",
Department of Health,The Christie NHS Foundation Trust,25/02/2021,PET-CT Outsourced Appointments,Christie Medical Physics,ALLIANCE MEDICAL LTD,0000661017," 257,022.00 ",
Department of Health,The Christie NHS Foundation Trust,11/02/2021,Drugs,Christie Medical Physics,ALLIANCE MEDICAL RADIOPHARMACY LIMITED,0000659964," 30,433.32 ",
Department of Health,The Christie NHS Foundation Trust,11/02/2021,Funding for Research Services,Research & Innovation,UNIVERSITY OF MANCHESTER,0000660003," 40,000.00 ",
Department of Health,The Christie NHS Foundation Trust,11/02/2021,Christie Workflow - August and September Days,Capital,AIRE LOGIC LIMITED,0000659453," 41,400.00 ",
Department of Health,The Christie NHS Foundation Trust,11/02/2021,Christie EPROMS August-October 2020,Capital,AIRE LOGIC LIMITED,0000659454," 153,087.60 ",
Department of Health,The Christie NHS Foundation Trust,25/02/2021,Project Management Fee for Paterson rebuild,Capital,ARCADIS LLP,0000660493," 64,385.59 ",
Department of Health,The Christie NHS Foundation Trust,04/02/2021,Construction Works,Capital,F PARKINSON LTD,0000660184," 28,497.60 ",
Department of Health,The Christie NHS Foundation Trust,03/02/2021,Medical Equipment,Capital,FLUOPTICS SAS,0000660104," 65,584.76 ",
Department of Health,The Christie NHS Foundation Trust,04/02/2021,Kitchen Floor Replacement ,Capital,INGHAM AND GARNER LTD,0000659425," 67,951.68 ",
Department of Health,The Christie NHS Foundation Trust,25/02/2021,Paterson Redevelopment Project,Capital,INTEGRATED HEALTH PROJECTS,0000661568," 1,776,296.71 ",
Department of Health,The Christie NHS Foundation Trust,18/02/2021,Construction Works - Theatres 8 & 9,Capital,INTEGRATED HEALTH PROJECTS,0000661523," 30,206.09 ",
Department of Health,The Christie NHS Foundation Trust,11/02/2021,Supply and Delivery of Air Conditioning Units,Capital,KOOL-IT SERVICES LIMITED,0000659426," 53,822.40 ",
Department of Health,The Christie NHS Foundation Trust,25/02/2021,Professional Tax Advice,Capital,KPMG LLP,0000661694," 29,763.90 ",
Department of Health,The Christie NHS Foundation Trust,11/02/2021,Materials on Mitel Upgrade Project,Capital,NG BAILEY IT SERVICES LIMITED,0000659347," 35,930.56 ",
Department of Health,The Christie NHS Foundation Trust,11/02/2021,Works carried on Property Preservation,Capital,PETER COX LTD,0000659737," 42,206.40 ",
Department of Health,The Christie NHS Foundation Trust,11/02/2021,Radiation Therapy Software Licenses,Capital,RAYSEARCH UK LTD,0000659437," 132,000.00 ",
Department of Health,The Christie NHS Foundation Trust,18/02/2021,Medical Equipment,Capital,SOFTCAT PLC,0000659943," 129,177.58 ",
Department of Health,The Christie NHS Foundation Trust,11/02/2021,The Christie at Macclesfield Project,Capital,VINCI CONSTRUCTION UK LIMITED,0000660930," 640,484.40 ",
Department of Health,The Christie NHS Foundation Trust,18/02/2021,GM Cancer Innovation Funding Project,Manchester Cancer,SALFORD ROYAL NHS FT,0000659987," 140,000.00 ",
Department of Health,The Christie NHS Foundation Trust,04/02/2021,Computer Equipment,Digital Services,CCS MEDIA LIMITED,0000658704," 46,752.00 ",
Department of Health,The Christie NHS Foundation Trust,04/02/2021,Licence Software Costs,Digital Services,IDEAGEN SOFTWARE LIMITED,0000659063," 30,364.19 ",
Department of Health,The Christie NHS Foundation Trust,11/02/2021,Medway System Support,Digital Services,SYSTEM C HEALTHCARE,0000659534," 28,018.18 ",
Department of Health,The Christie NHS Foundation Trust,18/02/2021,All Wards & Departments,The Christie NHS FT Balance,NHS SUPPLY CHAIN,0000661164," 72,030.59 ",
Department of Health,The Christie NHS Foundation Trust,18/02/2021,All Wards & Departments,The Christie NHS FT Balance,NHS SUPPLY CHAIN,0000661167," 63,440.08 ",
Department of Health,The Christie NHS Foundation Trust,18/02/2021,All Wards & Departments,The Christie NHS FT Balance,NHS SUPPLY CHAIN,0000661166," 54,337.89 ",
